bitfinex-derivatives/quotes_BTCF0:USTF0_20251103
["timestamp","ask_amount","ask_price","bid_price","bid_amount"]
[1762199440462,0.9763003,107250.0,107240.0,0.002]
[1762199440671,0.1517507,107230.0,107220.0,0.00307764]
[1762199440857,0.96584361,107230.0,107220.0,0.00307764]
[1762199441058,0.96584361,107230.0,107220.0,0.02462764]
[1762199441257,0.60606151,107230.0,107220.0,0.04605764]
[1762199441467,0.96686151,107230.0,107220.0,0.02462764]
[1762199441768,0.96686151,107230.0,107220.0,0.00307764]
[1762199442162,0.96686151,107230.0,107220.0,0.00607764]
[1762199445859,0.1165081,107210.0,107200.0,0.38391348]
[1762199446065,0.60566165,107210.0,107200.0,0.40556348]
[1762199446368,0.60667955,107210.0,107200.0,0.49887028]
[1762199446967,0.51338145,107210.0,107200.0,0.49887028]
[1762199447468,0.3237379,107210.0,107200.0,0.51317028]
[1762199447769,0.49991145,107210.0,107200.0,0.51317028]
[1762199447968,0.51338145,107210.0,107200.0,0.51317028]
[1762199448170,0.3828379,107210.0,107200.0,0.51317028]
[1762199448564,0.51338145,107210.0,107200.0,0.51317028]
[1762199449174,0.60667965,107210.0,107200.0,0.51317028]
[1762199451074,0.51338145,107210.0,107200.0,0.51317028]
[1762199451269,0.60667955,107210.0,107200.0,0.50187028]
[1762199451469,0.60667955,107210.0,107200.0,0.51317028]
[1762199451470,0.52277743,107210.0,107200.0,0.51317028]
[1762199452168,0.61607553,107210.0,107200.0,0.40856348]
[1762199452373,0.61607553,107210.0,107200.0,0.50187038]
[1762199453177,0.97696725,107210.0,107200.0,0.00310348]
[1762199453470,0.1389456,107190.0,107180.0,0.38688879]
[1762199453668,0.60571915,107190.0,107180.0,0.40853879]
[1762199454268,0.60673705,107190.0,107180.0,0.50186309]
[1762199454468,0.19072867,107190.0,107180.0,0.50186309]
[1762199454663,0.00108512,107190.0,107180.0,0.51676309]
[1762199454869,0.04671512,107190.0,107180.0,0.51676309]
[1762199456874,0.27057417,107190.0,107180.0,0.51676309]
[1762199457270,0.28404417,107190.0,107180.0,0.51676309]
[1762199458475,0.00108512,107190.0,107180.0,0.51676309]
[1762199458976,0.14003072,107190.0,107180.0,0.51676309]
[1762199460075,0.15350072,107190.0,107180.0,0.51676309]
[1762199460279,0.28404427,107190.0,107180.0,0.41053879]
[1762199460575,0.28404427,107190.0,107180.0,0.36587879]
[1762199460778,0.28404427,107190.0,107180.0,0.37911724]
[1762199460982,0.28404427,107190.0,107180.0,0.36587879]
[1762199461178,0.64484427,107190.0,107180.0,0.00507879]
[1762199461382,0.66655171,107190.0,107180.0,0.00507879]
[1762199461584,0.64484427,107190.0,107180.0,0.00507879]
[1762199462181,0.66654461,107190.0,107180.0,1e-08]
[1762199462783,0.74026043,107190.0,107180.0,1e-08]
[1762199462987,0.152433,107170.0,107160.0,0.40546]
[1762199463181,0.6058815,107170.0,107160.0,0.40546]
[1762199463385,0.1524416,107160.0,107150.0,0.38381]
[1762199463689,0.18964355,107160.0,107150.0,0.4988103]
[1762199463876,0.19876472,107160.0,107150.0,0.51201832]
[1762199464075,0.51244355,107160.0,107150.0,0.4988103]
[1762199464384,0.1897485,107170.0,107160.0,0.1369838]
[1762199464589,0.52194923,107170.0,107160.0,0.4977838]
[1762199464980,0.04573495,107170.0,107160.0,0.5103938]
[1762199465380,0.05920495,107170.0,107160.0,0.5103938]
[1762199465583,0.04573495,107170.0,107160.0,0.5103938]
[1762199465786,0.05501267,107170.0,107160.0,0.5103938]
[1762199465978,0.15253795,107170.0,107160.0,0.41807]
[1762199466181,0.2830815,107170.0,107160.0,0.04466]
[1762199466384,0.2860815,107170.0,107160.0,0.40546]
[1762199466588,0.2860815,107170.0,107160.0,0.3608]
[1762199467290,0.2860815,107170.0,107160.0,0.4988017]
[1762199468086,0.2860815,107170.0,107160.0,0.38381]
[1762199468290,0.1524417,107160.0,107150.0,0.40546]
[1762199468490,0.51248355,107160.0,107150.0,0.4988104]
[1762199469078,0.60582525,107160.0,107150.0,0.4988104]
[1762199469392,0.60582525,107160.0,107150.0,0.5114204]
[1762199469393,0.28498525,107160.0,107150.0,0.5114204]
[1762199469691,0.51448355,107160.0,107150.0,0.5114204]
[1762199470086,0.60782525,107160.0,107150.0,0.5114204]
[1762199470883,0.60782525,107160.0,107150.0,0.4988104]
[1762199472194,0.002,107160.0,107150.0,0.5114204]
[1762199472494,0.04763,107160.0,107150.0,0.8343004]
[1762199473392,0.28498525,107160.0,107150.0,0.8343004]
[1762199473693,0.19164355,107160.0,107150.0,0.8216904]
[1762199473992,0.17817355,107160.0,107150.0,0.8343004]
[1762199474188,0.1409717,107160.0,107150.0,0.8343004]
[1762199474392,0.02521,107160.0,107150.0,0.8343004]
[1762199474592,0.04788,107160.0,107150.0,0.8343004]
[1762199474792,0.1412217,107160.0,107150.0,0.8343004]
[1762199475194,0.04788,107160.0,107150.0,0.8343004]
[1762199475595,0.02521,107160.0,107150.0,0.8343004]
[1762199475793,0.04788,107160.0,107150.0,0.8343004]
[1762199476494,0.002,107160.0,107150.0,0.8343004]
[1762199476796,0.02474,107160.0,107150.0,0.8343004]
[1762199477000,0.04741,107160.0,107150.0,0.8343004]
[1762199477197,0.002,107160.0,107150.0,0.8343004]
[1762199477499,0.002,107160.0,107150.0,1.0676204]
[1762199477993,0.1541916,107160.0,107150.0,1.0676204]
[1762199478188,0.28473515,107160.0,107150.0,0.8216904]
[1762199478394,0.28473515,107160.0,107150.0,0.8343004]
[1762199479198,0.17795355,107160.0,107150.0,0.8343004]
[1762199479594,0.15528355,107160.0,107150.0,0.8343004]
[1762199479799,0.002,107160.0,107150.0,0.8343004]
[1762199479986,0.0953417,107160.0,107150.0,0.8343004]
[1762199480297,0.1541917,107160.0,107150.0,0.8343004]
[1762199480494,0.002,107160.0,107150.0,0.8343004]
[1762199481393,0.1180817,107160.0,107150.0,0.8343004]
[1762199481593,0.27129525,107160.0,107150.0,0.8343004]
[1762199481996,0.04741,107160.0,107150.0,0.8343004]
[1762199482191,0.17795355,107160.0,107150.0,0.8343004]
[1762199483095,0.13254355,107160.0,107150.0,0.8343004]
[1762199483396,0.17795355,107160.0,107150.0,0.8343004]
[1762199483803,0.28473525,107160.0,107150.0,0.40546]
[1762199483995,0.28473525,107160.0,107150.0,0.4988104]
[1762199484401,0.17795355,107160.0,107150.0,0.5114204]
[1762199484787,0.002,107160.0,107150.0,0.5114204]
[1762199484993,0.02474,107160.0,107150.0,0.5114204]
[1762199485193,0.04741,107160.0,107150.0,0.5114204]
[1762199485494,0.1407516,107160.0,107150.0,0.5114204]
[1762199485700,0.04741,107160.0,107150.0,0.5114204]
[1762199487299,0.002,107160.0,107150.0,0.56123128]
[1762199488092,0.02474,107160.0,107150.0,0.56123128]
[1762199488603,0.26989525,107160.0,107150.0,0.56123128]
[1762199488895,0.002,107160.0,107150.0,0.56123128]
[1762199489292,0.04627,107160.0,107150.0,0.56123128]
[1762199491599,0.1396117,107160.0,107150.0,0.5114204]
[1762199491900,0.04627,107160.0,107150.0,0.56127816]
[1762199492290,0.04627,107160.0,107150.0,0.5114204]
[1762199492291,0.002,107160.0,107150.0,0.5114204]
[1762199492886,0.002,107160.0,107150.0,0.57850454]
[1762199493288,0.002,107160.0,107150.0,0.81182454]
[1762199493687,0.002,107160.0,107150.0,0.57850454]
[1762199496402,0.03827291,107200.0,107190.0,0.02147]
[1762199496701,0.30347721,107200.0,107190.0,0.5097156]
[1762199496895,0.30347721,107200.0,107190.0,0.4971056]
[1762199497201,0.28156045,107200.0,107190.0,0.4971056]
[1762199497596,0.28764407,107200.0,107190.0,0.4981056]
[1762199497992,0.28764407,107200.0,107190.0,0.40479]
[1762199498394,0.37612259,107200.0,107190.0,0.4981056]
[1762199498599,0.39801241,107200.0,107190.0,0.4981056]
[1762199499395,0.39801241,107200.0,107190.0,0.4981057]
[1762199499998,0.39801241,107200.0,107190.0,0.3618]
[1762199500300,0.72085241,107200.0,107190.0,0.001]
[1762199503496,0.72085241,107200.0,107190.0,0.0943156]
[1762199503698,0.72085241,107200.0,107190.0,0.001]
[1762199504093,0.62754551,107200.0,107190.0,0.4981056]
[1762199504299,0.39801241,107200.0,107190.0,0.4981056]
[1762199504599,0.30470551,107200.0,107190.0,0.4981056]
[1762199504793,0.28281569,107200.0,107190.0,0.4981056]
[1762199504994,0.37612259,107200.0,107190.0,0.4981056]
[1762199507207,0.28281569,107200.0,107190.0,0.4981056]
[1762199508202,0.28281569,107200.0,107190.0,0.40479]
[1762199508513,0.39799181,107200.0,107190.0,0.4981056]
[1762199508706,0.37612259,107200.0,107190.0,0.4981056]
[1762199509009,0.37612259,107200.0,107190.0,0.001]
[1762199509200,0.39799304,107200.0,107190.0,0.001]
[1762199509509,0.17897097,107200.0,107190.0,0.40601]
[1762199509706,0.39799304,107200.0,107190.0,0.40601]
[1762199510411,0.39799304,107200.0,107190.0,0.4993256]
[1762199510612,0.28281569,107200.0,107190.0,0.4993256]
[1762199510802,0.37612259,107200.0,107190.0,0.4993256]
[1762199512011,0.37612259,107200.0,107190.0,0.40601]
[1762199512201,0.39799573,107200.0,107190.0,0.40601]
[1762199514212,0.39799573,107200.0,107190.0,0.499326]
[1762199514910,0.28281569,107200.0,107190.0,0.499326]
[1762199515208,0.37612299,107200.0,107190.0,0.499326]
[1762199516006,0.28281569,107200.0,107190.0,0.499326]
[1762199516309,0.37612299,107200.0,107190.0,0.499326]
[1762199517006,0.28281569,107200.0,107190.0,0.499326]
[1762199517210,0.37612299,107200.0,107190.0,0.499326]
[1762199517403,0.28281569,107200.0,107190.0,0.499326]
[1762199518006,0.37612279,107200.0,107190.0,0.499326]
[1762199520213,0.37612279,107200.0,107190.0,0.40601]
[1762199520412,0.38793192,107200.0,107190.0,0.001]
[1762199520607,0.1512659,107190.0,107170.0,0.41062081]
[1762199520816,0.57856759,107180.0,107170.0,0.38198]
[1762199521009,0.57856759,107180.0,107170.0,0.4753133]
[1762199521312,0.48524299,107180.0,107170.0,0.4983433]
[1762199521514,0.16248299,107190.0,107180.0,0.04421]
[1762199521812,0.25579889,107190.0,107180.0,0.4983347]
[1762199522015,0.16248299,107190.0,107180.0,0.4983347]
[1762199522203,0.25579879,107190.0,107180.0,0.4983347]
[1762199522402,0.1542658,107190.0,107180.0,0.4983347]
[1762199522804,0.37330144,107190.0,107180.0,0.4983347]
[1762199523206,0.37030144,107190.0,107180.0,0.4983347]
[1762199523408,0.37530144,107190.0,107180.0,0.4983347]
[1762199524509,0.37530154,107190.0,107180.0,0.4983347]
[1762199525009,0.39707849,107190.0,107180.0,0.4983347]
[1762199525209,0.39707849,107190.0,107180.0,0.40501]
[1762199525410,0.39707849,107190.0,107180.0,0.4983346]
[1762199526908,0.39707849,107190.0,107180.0,0.40501]
[1762199527511,0.1512746,107180.0,107170.0,0.45483081]
[1762199527709,0.69307024,107180.0,107170.0,0.40501]
[1762199528011,0.1147533,107170.0,107160.0,0.43180081]
[1762199528212,0.151292,107160.0,107150.0,0.45483081]
[1762199528406,0.69308764,107160.0,107150.0,0.45483081]
[1762199528609,0.69308764,107160.0,107150.0,0.54818161]
[1762199528814,0.69308774,107160.0,107150.0,0.54818161]
[1762199529212,0.69308774,107160.0,107150.0,0.4983608]
[1762199529809,0.69408774,107160.0,107150.0,0.4983608]
[1762199530211,0.69408774,107160.0,107150.0,0.40501]
[1762199530919,0.70327544,107160.0,107150.0,0.4983608]
[1762199531115,0.70327544,107160.0,107150.0,0.40501]
[1762199531710,0.70327544,107160.0,107150.0,0.4983608]
[1762199531910,0.60993334,107160.0,107150.0,0.4983608]
[1762199532214,0.3908977,107160.0,107150.0,0.5112608]
[1762199532425,0.70327544,107160.0,107150.0,0.5112608]
[1762199532719,0.60993334,107160.0,107150.0,0.4983608]
[1762199533017,0.70327544,107160.0,107150.0,0.4983608]
[1762199533612,0.70327544,107160.0,107150.0,0.40501]
[1762199533816,0.70327544,107160.0,107150.0,0.3608]
[1762199534426,0.70327544,107160.0,107150.0,0.40434]
[1762199534610,0.70327544,107160.0,107150.0,0.38198]
[1762199535220,0.70327544,107160.0,107150.0,0.02118]
[1762199535416,0.1517009,107150.0,107140.0,0.36387994]
[1762199535617,0.37084671,107150.0,107140.0,0.36387994]
[1762199535807,0.37084671,107150.0,107140.0,0.00307994]
[1762199536716,0.1517096,107140.0,107130.0,0.00010138]
[1762199536912,0.69354524,107140.0,107130.0,0.00010138]
[1762199537113,0.69354524,107140.0,107130.0,0.00141048]
[1762199537814,0.69354524,107140.0,107130.0,0.01465002]
[1762199538520,0.69354524,107140.0,107130.0,0.10801832]
[1762199538726,0.69354524,107140.0,107130.0,0.13096832]
[1762199539020,0.69454524,107140.0,107130.0,0.01465002]
[1762199539216,1.05534524,107140.0,107130.0,0.01465002]
[1762199539418,1.05534524,107140.0,107110.0,0.40611]
[1762199539419,0.151727,107120.0,107110.0,0.40611]
[1762199539608,0.69360264,107120.0,107110.0,0.4994958]
[1762199540518,0.60034059,107120.0,107110.0,0.4994958]
[1762199540730,0.60034059,107120.0,107110.0,0.5123958]
[1762199540915,0.32295495,107120.0,107110.0,0.5123958]
[1762199541119,0.00011495,107120.0,107110.0,0.5123958]
[1762199541319,0.05846495,107120.0,107110.0,0.5123958]
[1762199541524,0.15184195,107120.0,107110.0,0.4994958]
[1762199541819,0.05846495,107120.0,107110.0,0.4994958]
[1762199542021,0.05846495,107120.0,107110.0,0.5123958]
[1762199543219,0.04553495,107120.0,107110.0,0.5123958]
[1762199543627,0.13891195,107120.0,107110.0,0.5123958]
[1762199544016,0.15184195,107120.0,107110.0,0.5123958]
[1762199544621,0.05846495,107120.0,107110.0,0.5123958]
[1762199545327,0.15184205,107120.0,107110.0,0.5123958]
[1762199545725,0.15184205,107120.0,107110.0,0.8352758]
[1762199546429,0.37087769,107120.0,107110.0,0.40611]
[1762199547928,0.37087769,107120.0,107110.0,0.4994958]
[1762199548831,0.38001996,107120.0,107110.0,0.4994958]
[1762199549929,0.28664286,107120.0,107110.0,0.4994958]
[1762199550128,0.06760722,107120.0,107110.0,0.4994958]
[1762199550322,0.47107432,107120.0,107110.0,0.5121058]
[1762199550526,0.37769722,107120.0,107110.0,0.5121058]
[1762199550726,0.39131722,107120.0,107110.0,0.5121058]
[1762199551433,0.48469422,107120.0,107110.0,0.5121058]
[1762199551630,0.05925495,107120.0,107110.0,0.5121058]
[1762199552424,0.06734191,107120.0,107110.0,0.8350258]
[1762199552621,0.16071891,107120.0,107110.0,0.8224158]
[1762199552833,0.37975455,107120.0,107110.0,0.8224158]
[1762199553432,0.02220495,107120.0,107110.0,0.8350258]
[1762199553633,0.00011495,107120.0,107110.0,0.8350258]
[1762199553929,0.04457495,107120.0,107110.0,0.8350258]
[1762199555225,0.02220495,107120.0,107110.0,0.8350258]
[1762199555426,0.00011495,107120.0,107110.0,0.8350258]
[1762199556038,0.04457495,107120.0,107110.0,0.8350258]
[1762199556336,0.13795195,107120.0,107110.0,0.8350258]
[1762199556532,0.04457495,107120.0,107110.0,0.8350258]
[1762199556836,0.00011495,107120.0,107110.0,0.8350258]
[1762199557334,0.02220495,107120.0,107110.0,0.8350258]
[1762199557531,0.04457495,107120.0,107110.0,0.8350258]
[1762199558336,0.15157195,107120.0,107110.0,0.87223661]
[1762199558635,0.37060759,107120.0,107110.0,0.87223661]
[1762199558934,0.00011495,107120.0,107110.0,0.88484661]
[1762199559435,0.00011495,107120.0,107110.0,0.8350258]
[1762199559625,0.15157195,107120.0,107110.0,0.87223661]
[1762199559825,0.15157195,107120.0,107110.0,0.8224158]
[1762199560227,0.15157195,107120.0,107110.0,0.88484661]
[1762199560431,0.18903727,107120.0,107110.0,0.88484661]
[1762199560639,0.17541727,107120.0,107110.0,0.88484661]
[1762199562134,0.26879437,107120.0,107110.0,0.88484661]
[1762199562429,0.18903727,107120.0,107110.0,0.88484661]
[1762199562735,0.28241437,107120.0,107110.0,0.88484661]
[1762199563036,0.28241437,107120.0,107110.0,0.87223661]
[1762199563427,0.18903727,107120.0,107110.0,0.87223661]
[1762199563629,0.17541727,107120.0,107110.0,0.88484661]
[1762199564336,0.25391447,107120.0,107110.0,0.88484661]
[1762199564523,0.36086147,107120.0,107110.0,0.88484661]
[1762199565335,0.48752259,107120.0,107110.0,0.54931651]
[1762199565733,0.38285283,107120.0,107110.0,0.18851651]
[1762199565939,0.38285283,107120.0,107110.0,0.54931651]
[1762199566329,0.38285283,107120.0,107110.0,0.4994957]
[1762199566637,0.81344259,107120.0,107110.0,0.40611]
[1762199567032,0.81344259,107120.0,107110.0,0.4771358]
[1762199568031,0.79145123,107120.0,107110.0,0.4986158]
[1762199568240,0.81344597,107120.0,107110.0,0.4986158]
[1762199568736,0.70877621,107120.0,107110.0,0.4986158]
[1762199570941,0.61539921,107120.0,107110.0,0.4986158]
[1762199571440,0.70877631,107120.0,107110.0,0.4986158]
[1762199573644,0.61539921,107120.0,107110.0,0.4986158]
[1762199573844,0.70877621,107120.0,107110.0,0.4986158]
[1762199574444,0.38585621,107120.0,107110.0,0.4986158]
[1762199574636,0.38585621,107120.0,107110.0,0.56133661]
[1762199574637,0.61539921,107120.0,107110.0,0.56133661]
[1762199574943,0.70877621,107120.0,107110.0,0.56133661]
[1762199575237,0.70877621,107120.0,107110.0,0.54843661]
[1762199575639,0.70877661,107120.0,107110.0,0.54843661]
[1762199575846,0.70877661,107120.0,107110.0,0.4986158]
[1762199577042,0.81344637,107120.0,107110.0,0.40523]
[1762199577238,0.70877661,107120.0,107110.0,0.40523]
[1762199577439,0.81344637,107120.0,107110.0,0.40523]
[1762199577839,0.81344637,107120.0,107110.0,0.3608]
[1762199578137,0.1522261,107110.0,107100.0,0.4563019]
[1762199578343,0.36156562,107110.0,107100.0,0.4563019]
[1762199578544,0.36156562,107110.0,107100.0,0.5496967]
[1762199578739,0.38350835,107110.0,107100.0,0.40648109]
[1762199578930,0.36156562,107110.0,107100.0,0.0955019]
[1762199579137,0.38350949,107110.0,107100.0,0.04568109]
[1762199579336,0.38550949,107110.0,107100.0,0.49987589]
[1762199579640,0.28083973,107110.0,107100.0,0.49987589]
[1762199580637,0.28083973,107110.0,107100.0,0.40648109]
[1762199580843,0.38550949,107110.0,107100.0,0.40648109]
[1762199581338,0.28083973,107110.0,107100.0,0.49987589]
[1762199581737,0.51037363,107110.0,107100.0,0.49987589]
[1762199581938,0.48842976,107110.0,107100.0,0.51248589]
[1762199582145,0.58181576,107110.0,107100.0,0.51248589]
[1762199582342,0.48842976,107110.0,107100.0,0.51248589]
[1762199583543,0.58181576,107110.0,107100.0,0.51248589]
[1762199583743,0.48842976,107110.0,107100.0,0.51248589]
[1762199583941,0.00011495,107120.0,107110.0,0.0426]
[1762199584242,0.10466976,107140.0,107130.0,0.1472686]
[1762199584444,0.14993976,107140.0,107130.0,0.91886107]
[1762199584739,0.16350976,107140.0,107130.0,0.91886107]
[1762199585144,0.36153942,107140.0,107130.0,0.90756107]
[1762199585336,0.36153942,107140.0,107130.0,0.90756097]
[1762199585538,0.36453942,107140.0,107130.0,0.90756097]
[1762199585733,0.36453942,107140.0,107130.0,0.0426]
[1762199585933,0.39566298,107140.0,107130.0,0.4034]
[1762199586348,0.31723419,107140.0,107130.0,0.4034]
[1762199586744,0.20195821,107140.0,107130.0,0.4967686]
[1762199586948,0.0619366,107140.0,107130.0,0.5036386]
[1762199587143,0.0258266,107140.0,107130.0,0.5036386]
[1762199587454,0.0483666,107140.0,107130.0,0.5036386]
[1762199587643,0.0619366,107140.0,107130.0,0.5036386]
[1762199588041,0.28611043,107140.0,107130.0,0.4967686]
[1762199588241,0.28611043,107140.0,107130.0,0.4034]
[1762199588445,0.30802296,107140.0,107130.0,0.4034]
[1762199589152,0.30802296,107140.0,107130.0,0.4967677]
[1762199589351,0.19275073,107140.0,107130.0,0.4967677]
[1762199589554,0.19275073,107140.0,107130.0,0.5036377]
[1762199589847,0.0483666,107140.0,107130.0,0.55363017]
[1762199590440,0.0030966,107140.0,107130.0,0.55363017]
[1762199590642,0.03872362,107170.0,107160.0,0.1359417]
[1762199590643,0.08399362,107170.0,107160.0,0.1359417]
[1762199590859,0.08074343,107170.0,107160.0,0.4967417]
[1762199591047,0.05884,107170.0,107160.0,0.5080417]
[1762199591553,0.16155585,107170.0,107160.0,0.8196217]
[1762199592455,0.29736998,107170.0,107160.0,0.8196215]
[1762199594046,0.29736998,107170.0,107160.0,0.72628]
[1762199594854,0.16655585,107170.0,107160.0,0.8196215]
[1762199595055,0.16655585,107170.0,107160.0,0.72628]
[1762199596055,0.29736998,107170.0,107160.0,0.72628]
[1762199596457,0.29736998,107170.0,107160.0,0.4034]
[1762199597051,0.29736998,107170.0,107160.0,0.38192]
[1762199597247,0.29736998,107170.0,107160.0,0.4978215]
[1762199597454,0.05965305,107170.0,107160.0,0.5091215]
[1762199597762,0.16597585,107170.0,107160.0,0.5091215]
[1762199598058,0.16597585,107170.0,107160.0,0.4978215]
[1762199598756,0.29678998,107170.0,107160.0,0.4978215]
[1762199598957,0.20345718,107170.0,107160.0,0.4978215]
[1762199599651,0.07264305,107170.0,107160.0,0.4978215]
[1762199600045,0.01438305,107170.0,107160.0,0.8319215]
[1762199600455,0.05877305,107170.0,107160.0,0.8319215]
[1762199600649,0.005,107170.0,107160.0,0.8319215]
[1762199602947,0.0983327,107170.0,107160.0,0.8319215]
[1762199605868,0.28740683,107170.0,107160.0,0.40448]
[1762199606064,0.61016683,107170.0,107160.0,0.40448]
[1762199606257,0.61016683,107170.0,107160.0,0.3608]
[1762199606458,0.1516015,107160.0,107150.0,0.40491]
[1762199606754,0.28241563,107160.0,107150.0,0.4982602]
[1762199607552,0.19107413,107160.0,107150.0,0.4982602]
[1762199607754,0.002,107160.0,107150.0,0.5095602]
[1762199607965,0.1519915,107160.0,107150.0,0.4982602]
[1762199608159,0.02384,107160.0,107150.0,0.5095602]
[1762199608355,0.04586,107160.0,107150.0,0.5095602]
[1762199608561,0.1392015,107160.0,107150.0,0.5095602]
[1762199609363,0.02384,107160.0,107150.0,0.5095602]
[1762199609656,0.002,107160.0,107150.0,0.5095602]
[1762199610065,0.4738237,107170.0,107160.0,0.1367415]
[1762199610264,0.1510637,107170.0,107160.0,0.4975415]
[1762199610960,0.05773,107170.0,107160.0,0.5101515]
[1762199611167,0.16059372,107180.0,107170.0,0.1367328]
[1762199611367,0.14672372,107180.0,107170.0,0.5044028]
[1762199611566,0.29032785,107180.0,107170.0,0.4042]
[1762199611756,0.29032785,107180.0,107170.0,0.0434]
[1762199611956,0.29032785,107180.0,107160.0,0.68352]
[1762199612162,0.28079673,107170.0,107160.0,0.72692]
[1762199612363,0.28079673,107170.0,107160.0,0.4975415]
[1762199613671,0.28179673,107170.0,107160.0,0.4042]
[1762199614370,0.28179673,107170.0,107160.0,0.4975416]
[1762199614765,0.1509826,107170.0,107160.0,0.4975416]
[1762199614970,0.1381929,107170.0,107160.0,0.5101516]
[1762199615272,0.1509829,107170.0,107160.0,0.5101516]
[1762199615576,0.28179703,107170.0,107160.0,0.4975415]
[1762199616267,0.1509829,107170.0,107160.0,0.4975415]
[1762199617875,0.28179703,107170.0,107160.0,0.4975415]
[1762199618475,0.30356325,107170.0,107160.0,0.4975415]
[1762199619475,0.30356325,107170.0,107160.0,0.4042]
[1762199619866,0.30356325,107170.0,107160.0,0.4975416]
[1762199620173,0.30356325,107170.0,107160.0,0.5101516]
[1762199620174,0.02276622,107170.0,107160.0,0.5101516]
[1762199620572,0.04460622,107170.0,107160.0,0.56007919]
[1762199620979,0.04486,107170.0,107160.0,0.56007919]
[1762199621182,0.001,107170.0,107160.0,0.56007919]
[1762199621989,0.02284,107170.0,107160.0,0.56007919]
[1762199622487,0.04486,107170.0,107160.0,0.56007919]
[1762199622780,0.1381929,107170.0,107160.0,0.56007919]
[1762199623184,0.1509829,107170.0,107160.0,0.56007919]
[1762199623388,0.1509829,107170.0,107160.0,0.54746919]
[1762199624787,0.1509829,107170.0,107160.0,0.56007919]
[1762199625380,0.1509829,107170.0,107160.0,0.54746919]
[1762199625685,0.1381929,107170.0,107160.0,0.56007919]
[1762199625888,0.04486,107170.0,107160.0,0.56007919]
[1762199626082,0.001,107170.0,107160.0,0.56007919]
[1762199627492,0.02425,107170.0,107160.0,0.56007919]
[1762199627991,0.001,107170.0,107160.0,0.56007919]
[1762199629695,0.0943329,107170.0,107160.0,0.56007919]
[1762199630089,0.04653,107170.0,107160.0,0.56007919]
[1762199630396,0.001,107170.0,107160.0,0.56007919]
[1762199631696,0.16227172,107180.0,107170.0,0.04513]
[1762199631897,0.18405418,107180.0,107170.0,0.40593]
[1762199632498,0.18405418,107180.0,107170.0,0.4992628]
[1762199632898,0.18505418,107180.0,107170.0,0.4992628]
[1762199633297,0.02517347,107200.0,107170.0,0.87874039]
[1762199633497,0.17627346,107210.0,107200.0,0.1487367]
[1762199633701,0.0340423,107210.0,107200.0,0.5095367]
[1762199634400,0.10556309,107210.0,107200.0,0.5095367]
[1762199634600,0.16497309,107210.0,107200.0,0.5095368]
[1762199635301,0.05779499,107210.0,107200.0,0.5095368]
[1762199635596,0.02925,107210.0,107200.0,0.5095368]
[1762199635796,0.0385448,107210.0,107200.0,0.5095368]
[1762199636005,0.1541229,107210.0,107200.0,0.5095368]
[1762199636404,0.0152948,107210.0,107200.0,0.5095368]
[1762199636595,0.0122948,107210.0,107200.0,0.5095368]
[1762199636798,0.003,107210.0,107200.0,0.5095368]
[1762199638705,0.003,107210.0,107200.0,0.5105368]
[1762199639195,0.1526906,107230.0,107220.0,0.1384193]
[1762199639396,0.1526906,107230.0,107220.0,0.4992193]
[1762199639592,0.17437243,107230.0,107220.0,0.4992193]
[1762199639792,0.1526906,107230.0,107220.0,0.4992193]
[1762199640207,0.17437216,107230.0,107220.0,0.4992193]
[1762199640400,0.08109156,107230.0,107220.0,0.4992193]
[1762199640606,0.04553,107230.0,107220.0,0.8726293]
[1762199640904,0.1388107,107230.0,107220.0,0.8726293]
[1762199641101,0.1165307,107230.0,107220.0,0.8726293]
[1762199641408,0.1388107,107230.0,107220.0,0.8726293]
[1762199641597,0.04653,107230.0,107220.0,0.8726293]
[1762199641798,0.1536907,107230.0,107220.0,0.8726293]
[1762199641998,0.1536907,107230.0,107220.0,0.8600193]
[1762199642702,0.001,107230.0,107220.0,0.8726293]
[1762199642906,0.003,107250.0,107240.0,0.1487019]
[1762199643102,0.0962632,107250.0,107240.0,1.1928619]
[1762199643404,0.1195132,107250.0,107240.0,1.09959]
[1762199643703,0.1556732,107250.0,107240.0,0.76673]
[1762199643899,0.37472438,107250.0,107240.0,0.04513]
[1762199644301,0.3842026,107250.0,107240.0,0.04513]
[1762199644704,0.3842026,107250.0,107240.0,0.40593]
[1762199644899,0.3842026,107250.0,107240.0,0.499202]
[1762199645100,0.3852026,107250.0,107240.0,0.40593]
[1762199646107,0.152682,107240.0,107230.0,0.40593]
[1762199646308,0.37173318,107240.0,107230.0,0.72845]
[1762199646608,0.152682,107240.0,107230.0,0.4992106]
[1762199646794,0.152682,107240.0,107230.0,0.40593]
[1762199647007,0.1526906,107230.0,107220.0,0.40593]
[1762199647296,0.1526992,107220.0,107210.0,0.38405]
[1762199647500,0.37175038,107220.0,107210.0,0.40593]
[1762199648203,0.37175038,107220.0,107210.0,0.4992279]
[1762199648504,0.4752162,107230.0,107220.0,0.1384194]
[1762199648713,0.1526907,107230.0,107220.0,0.4992194]
[1762199652402,0.02325,107230.0,107220.0,0.5060894]
[1762199652808,0.02325,107230.0,107220.0,0.4992194]
[1762199652809,0.1526907,107230.0,107220.0,0.4992194]
[1762199654001,0.1526907,107230.0,107220.0,0.5002194]
[1762199654400,0.1526907,107230.0,107220.0,0.4992194]
[1762199656711,0.37174188,107230.0,107220.0,0.04513]
[1762199656900,0.1508494,107220.0,107210.0,0.38396]
[1762199657107,0.69238058,107220.0,107210.0,0.38396]
[1762199657303,0.69238058,107220.0,107210.0,0.40689]
[1762199658609,0.69438058,107220.0,107210.0,0.40689]
[1762199658811,0.69438058,107220.0,107210.0,0.38396]
[1762199659016,0.69438058,107220.0,107210.0,0.40689]
[1762199659506,0.4753294,107220.0,107210.0,0.500188]
[1762199659706,0.1528494,107220.0,107210.0,0.512798]
[1762199659908,0.4753294,107220.0,107210.0,0.512798]
[1762199660306,0.4623994,107220.0,107210.0,0.512798]
[1762199660704,0.4603994,107220.0,107210.0,0.512798]
[1762199662607,0.1379194,107220.0,107210.0,0.512798]
[1762199664417,0.1379194,107220.0,107210.0,0.513798]
[1762199665218,0.1508494,107220.0,107210.0,0.513798]
[1762199666606,0.1148994,107220.0,107210.0,0.513798]
[1762199666809,0.38099,107230.0,107220.0,0.1393794]
[1762199667010,0.38099,107230.0,107220.0,0.5001794]
[1762199667215,0.38099,107230.0,107220.0,0.5070494]
[1762199667610,0.38099,107230.0,107220.0,0.5001794]
[1762199668009,0.1517909,107230.0,107220.0,0.40689]
[1762199668312,0.17350613,107230.0,107220.0,0.40689]
[1762199668719,0.39255731,107230.0,107220.0,0.40689]
[1762199670417,0.39455731,107230.0,107220.0,0.40689]
[1762199671719,0.1492296,107220.0,107210.0,0.5000508]
[1762199673826,0.71244612,107220.0,107210.0,0.40676]
[1762199675120,0.71244612,107220.0,107210.0,0.5000587]
[1762199675621,0.71244612,107220.0,107210.0,0.40676]
[1762199676522,0.71444612,107220.0,107210.0,0.5000586]
[1762199676720,0.71444612,107220.0,107210.0,0.40676]